fUSD/lending_fUSD_20240428
["ID","MTS","AMOUNT","RATE_DAILY","PERIOD"]
[323783033,1714290643128,-500.0,0.00016438,2]
[323783034,1714290643138,-500.0,0.00016438,2]
[323783035,1714290643147,-500.0,0.00016438,2]
[323783036,1714290643156,-500.0,0.00016438,2]
[323783037,1714290643166,-2154.22,0.00016438,2]
[323783038,1714290643175,-1949.29,0.00016438,2]
[323783039,1714290643186,-704.71,0.00016438,2]
[323783040,1714290643195,-500.0,0.00016438,2]
[323783041,1714290643205,-500.0,0.00016438,2]
[323783042,1714290643214,-542.33,0.00016438,2]
[323783043,1714290643223,-1916.13,0.00016438,2]
[323783044,1714290643233,-297.97049873,0.00016438,2]
[323783045,1714290643242,-500.0,0.00016438,2]
[323783046,1714290643252,-220.68922654,0.00016438,2]
[323783047,1714290643262,-2795.05,0.00016438,2]
[323783048,1714290643272,-848.31,0.00016438,2]
[323783049,1714290643282,-1918.32,0.00016438,2]
[323783050,1714290643292,-500.0,0.00016438,2]
[323783051,1714290643303,-500.0,0.00016438,2]
[323783052,1714290643314,-549.98,0.00016438,2]
[323783053,1714290643323,-500.0,0.00016438,2]
[323783054,1714290643333,-500.0,0.00016438,2]
[323783055,1714290643342,-500.0,0.00016438,2]
[323783056,1714290643352,-500.0,0.00016438,2]
[323783057,1714290643362,-500.0,0.00016438,2]
[323783058,1714290643372,-500.0,0.00016438,2]
[323783059,1714290643382,-500.0,0.00016438,2]
[323783060,1714290643392,-599.94,0.00016438,2]
[323783061,1714290643402,-272.81592221,0.00016438,2]
[323783062,1714290643411,-500.0,0.00016438,2]
[323783063,1714290643420,-2080.82,0.00016438,2]
[323783064,1714290643429,-845.9,0.00016438,2]
[323783065,1714290643438,-500.0,0.00016438,2]
[323783066,1714290643448,-500.0,0.00016438,2]
[323783067,1714290643459,-500.0,0.00016438,2]
[323783068,1714290643469,-500.0,0.00016438,2]
[323783069,1714290643478,-500.0,0.00016438,2]
[323783070,1714290643487,-500.0,0.00016438,2]
[323783071,1714290643496,-1319.64,0.00016438,2]
[323783072,1714290643505,-2357.71,0.00016438,2]
[323783073,1714290643515,-669.24,0.00016438,2]
[323783074,1714290643524,-500.0,0.00016438,2]
[323783075,1714290643534,-505.66632007,0.00016438,2]
[323783076,1714290643544,-582.25,0.00016438,2]
[323783077,1714290643553,-500.0,0.00016438,2]
[323783078,1714290643563,-500.0,0.00016438,2]
[323783079,1714290643572,-500.0,0.00016438,2]
[323783080,1714290643582,-1680.1,0.00016438,2]
[323783081,1714290643591,-1361.01,0.00016438,2]
[323783082,1714290643600,-500.0,0.00016438,2]
[323783083,1714290643611,-500.0,0.00016438,2]
[323783084,1714290643623,-500.0,0.00016438,2]
[323783085,1714290643633,-500.0,0.00016438,2]
[323783086,1714290643643,-500.0,0.00016438,2]
[323783087,1714290643653,-500.0,0.00016438,2]
[323783088,1714290643663,-500.0,0.00016438,2]
[323783089,1714290643673,-500.0,0.00016438,2]
[323783090,1714290643682,-500.0,0.00016438,2]
[323783091,1714290643691,-500.0,0.00016438,2]
[323783092,1714290643700,-1047.66,0.00016438,2]
[323783093,1714290643710,-502.05183797,0.00016438,2]
[323783094,1714290643719,-678.06,0.00016438,2]
[323783095,1714290643728,-1102.61,0.00016438,2]
[323783096,1714290643740,-1253.44,0.00016438,2]
[323783097,1714290643749,-726.64,0.00016438,2]
[323783098,1714290643758,-676.19,0.00016438,2]
[323783099,1714290643768,-749.7,0.00016438,2]
[323783100,1714290643777,-1653.38,0.00016438,2]
[323783101,1714290643786,-558.28,0.00016438,2]
[323783102,1714290643796,-500.0,0.00016438,2]
[323783103,1714290643806,-567.19349719,0.00016438,2]
[323783104,1714290643817,-500.0,0.00016438,2]
[323783105,1714290643826,-501.36785672,0.00016438,2]
[323783106,1714290643836,-1395.1,0.00016438,2]
[323783107,1714290643845,-500.0,0.00016438,2]
[323783108,1714290643854,-1652.57,0.00016438,2]
[323783109,1714290643864,-500.0,0.00016438,2]
[323783110,1714290643873,-575.92,0.00016438,2]
[323783111,1714290643882,-500.0,0.00016438,2]
[323783112,1714290643892,-501.35755734,0.00016438,2]
[323783113,1714290643901,-500.0,0.00016438,2]
[323783114,1714290643910,-1070.19,0.00016438,2]
[323783115,1714290643920,-500.0,0.00016438,2]
[323783116,1714290643929,-500.0,0.00016438,2]
[323783117,1714290643938,-500.0,0.00016438,2]
[323783118,1714290643947,-333.3579789,0.00016438,2]
[323783119,1714290643957,-1098.69,0.00016438,2]
[323783120,1714290643967,-500.0,0.00016438,2]
[323783121,1714290643976,-500.0,0.00016438,2]
[323783122,1714290643986,-500.0,0.00016438,2]
[323783123,1714290643997,-500.0,0.00016438,2]
[323783124,1714290644006,-500.0,0.00016438,2]
[323783125,1714290644016,-558.04291659,0.00016438,2]
[323783126,1714290644026,-500.0,0.00016438,2]
[323783127,1714290644038,-1962.9,0.00016438,2]
[323783128,1714290644048,-500.0,0.00016438,2]
[323783129,1714290644058,-2131.57,0.00016438,2]
[323783130,1714290644068,-500.0,0.00016438,2]
[323783131,1714290644078,-503.04686889,0.00016438,2]
[323783132,1714290644088,-1222.22,0.00016438,2]
[323783133,1714290644281,-500.0,0.00016438,2]
[323783134,1714290644291,-500.0,0.00016438,2]
[323783135,1714290644300,-1663.19,0.00016438,2]
[323783136,1714290644309,-500.0,0.00016438,2]
[323783137,1714290644318,-500.0,0.00016438,2]
[323783138,1714290644327,-2279.32,0.00016438,2]
[323783139,1714290644337,-331.41026756,0.00016438,2]
[323783140,1714290644346,-500.0,0.00016438,2]
[323783141,1714290644355,-218.59541938,0.00016438,2]
[323783142,1714290644364,-500.0,0.00016438,2]
[323783143,1714290644373,-500.0,0.00016438,2]
[323783144,1714290644382,-231.97571966,0.00016438,2]
[323783145,1714290644393,-500.0,0.00016438,2]
[323783146,1714290644402,-1252.63,0.00016438,2]
[323783147,1714290644410,-1374.22,0.00016438,2]
[323783148,1714290644419,-500.0,0.00016438,2]
[323783149,1714290644429,-500.0,0.00016438,2]
[323783150,1714290644438,-517.1016,0.00016438,2]
[323783151,1714290644446,-500.0,0.00016438,2]
[323783152,1714290644454,-517.3,0.00016438,2]
[323783153,1714290644463,-991.97,0.00016438,2]
[323783154,1714290644472,-501.96638279,0.00016438,2]
[323783155,1714290644481,-961.07,0.00016438,2]
[323783156,1714290644489,-1113.98,0.00016438,2]
[323783157,1714290644498,-492.36509798,0.00016438,2]
[323783158,1714290644507,-922.46,0.00016438,2]
[323783159,1714290644516,-500.0,0.00016438,2]
[323783160,1714290644525,-500.0,0.00016438,2]
[323783161,1714290644534,-500.0,0.00016438,2]
[323783162,1714290644542,-500.0,0.00016438,2]
[323783163,1714290644551,-500.0,0.00016438,2]
[323783164,1714290644560,-504.2737944,0.00016438,2]
[323783165,1714290644569,-500.0,0.00016438,2]
[323783166,1714290644578,-500.0,0.00016438,2]
[323783167,1714290644587,-500.0,0.00016438,2]
[323783168,1714290644595,-500.0,0.00016438,2]
[323783169,1714290644604,-2195.8,0.00016438,2]
[323783170,1714290644613,-534.61,0.00016438,2]
[323783171,1714290644622,-500.0,0.00016438,2]
[323783172,1714290644632,-831.19,0.00016438,2]
[323783173,1714290644641,-500.0,0.00016438,2]
[323783174,1714290644651,-500.0,0.00016438,2]
[323783175,1714290644661,-1781.0,0.00016438,2]
[323783176,1714290644669,-1921.15,0.00016438,2]
[323783177,1714290644681,-600.97,0.00016438,2]
[323783178,1714290644691,-500.0,0.00016438,2]
[323783179,1714290644700,-548.47,0.00016438,2]
[323783180,1714290644709,-1671.67,0.00016438,2]
[323783181,1714290644718,-909.02,0.00016438,2]
[323783182,1714290644727,-500.0,0.00016438,2]
[323783183,1714290644741,-552.24,0.00016438,2]
[323783184,1714290644750,-500.0,0.00016438,2]
[323783185,1714290644759,-1269.42,0.00016438,2]
[323783186,1714290644769,-504.64977779,0.00016438,2]
[323783187,1714290644778,-500.0,0.00016438,2]
[323783188,1714290644787,-500.0,0.00016438,2]
[323783189,1714290644796,-500.0,0.00016438,2]
[323783190,1714290644806,-2033.92,0.00016438,2]
[323783191,1714290644815,-500.0,0.00016438,2]
[323783192,1714290644826,-500.0,0.00016438,2]
[323783193,1714290644838,-502.81209429,0.00016438,2]
[323783194,1714290644848,-506.7903253,0.00016438,2]
[323783195,1714290644858,-973.15328874,0.00016438,2]
[323783196,1714290644867,-500.0,0.00016438,2]
[323783197,1714290644876,-1000.0,0.00016438,2]
[323783198,1714290644886,-1450.4,0.00016438,2]
[323783199,1714290644895,-1004.18,0.00016438,2]
[323783200,1714290644904,-550.14,0.00016438,2]
[323783201,1714290644914,-500.0,0.00016438,2]
[323783202,1714290644923,-1048.46,0.00016438,2]
[323783203,1714290644933,-500.0,0.00016438,2]
[323783204,1714290644943,-500.0,0.00016438,2]
[323783205,1714290644952,-1665.19,0.00016438,2]
[323783206,1714290644961,-500.0,0.00016438,2]
[323783207,1714290644970,-500.0,0.00016438,2]
[323783208,1714290644980,-501.89800626,0.00016438,2]
[323783209,1714290644989,-889.54,0.00016438,2]
[323783210,1714290644999,-500.0,0.00016438,2]
[323783211,1714290645008,-602.24,0.00016438,2]
[323783212,1714290645018,-500.0,0.00016438,2]
[323783213,1714290645027,-1216.63,0.00016438,2]
[323783214,1714290645037,-500.0,0.00016438,2]
[323783215,1714290645047,-500.0,0.00016438,2]
[323783216,1714290645056,-627.86,0.00016438,2]
[323783217,1714290645066,-500.0,0.00016438,2]
[323783218,1714290645102,-500.0,0.00016438,2]
[323783219,1714290645112,-627.17,0.00016438,2]
[323783220,1714290645121,-607.18,0.00016438,2]
[323783221,1714290645130,-550.64,0.00016438,2]
[323783222,1714290645140,-500.0,0.00016438,2]
[323783223,1714290645149,-500.0,0.00016438,2]
[323783224,1714290645159,-916.13,0.00016438,2]
[323783225,1714290645169,-1234.96,0.00016438,2]
[323783226,1714290645178,-510.50527578,0.00016438,2]
[323783227,1714290645188,-500.0,0.00016438,2]
[323783228,1714290645197,-1327.88,0.00016438,2]
[323783230,1714290645207,-1329.57,0.00016438,2]
[323783231,1714290645217,-500.0,0.00016438,2]
[323783233,1714290645228,-500.0,0.00016438,2]
[323783235,1714290645238,-500.0,0.00016438,2]
[323783237,1714290645248,-500.0,0.00016438,2]
[323783238,1714290645259,-1525.8,0.00016438,2]
[323783239,1714290645269,-1139.56,0.00016438,2]
[323783240,1714290645279,-1621.76,0.00016438,2]
[323783241,1714290645289,-500.0,0.00016438,2]
[323783242,1714290645299,-500.0,0.00016438,2]
[323783243,1714290645309,-503.27656726,0.00016438,2]
[323783244,1714290645319,-522.78,0.00016438,2]
[323783245,1714290645329,-541.52,0.00016438,2]
[323783246,1714290645340,-500.0,0.00016438,2]
[323783247,1714290645350,-937.44,0.00016438,2]
[323783248,1714290645361,-746.16,0.00016438,2]
[323783249,1714290645371,-500.0,0.00016438,2]
[323783250,1714290645381,-500.0,0.00016438,2]
[323783251,1714290645390,-500.0,0.00016438,2]
[323783252,1714290645399,-500.0,0.00016438,2]
[323783253,1714290645407,-500.0,0.00016438,2]
[323783254,1714290645416,-500.0,0.00016438,2]
[323783255,1714290645433,-500.0,0.00016438,2]
[323783256,1714290645455,-500.0,0.00016438,2]
[323783257,1714290645471,-500.0,0.00016438,2]
[323783258,1714290645490,-584.00253524,0.00016438,2]
[323783259,1714290645506,-500.0,0.00016438,2]
[323783260,1714290645523,-511.8,0.00016438,2]
[323783261,1714290645541,-564.94,0.00016438,2]
[323783262,1714290645561,-724.95,0.00016438,2]
[323783263,1714290645581,-500.0,0.00016438,2]
[323783264,1714290645600,-1516.33,0.00016438,2]
[323783265,1714290645617,-500.0,0.00016438,2]
[323783266,1714290645640,-500.0,0.00016438,2]
[323783267,1714290645660,-500.0,0.00016438,2]
[323783268,1714290645673,-551.39,0.00016438,2]
[323783269,1714290645689,-650.98,0.00016438,2]
[323783270,1714290645707,-500.0,0.00016438,2]
[323783271,1714290645722,-1710.45,0.00016438,2]
[323783272,1714290645739,-500.0,0.00016438,2]
[323783273,1714290645755,-954.53,0.00016438,2]
[323783274,1714290645770,-537.69,0.00016438,2]
[323783275,1714290645787,-1422.8,0.00016438,2]
[323783276,1714290645803,-503.94893769,0.00016438,2]
[323783277,1714290645819,-1139.62,0.00016438,2]
[323783278,1714290645840,-500.0,0.00016438,2]
[323783279,1714290645855,-543.69,0.00016438,2]
[323783280,1714290645870,-500.0,0.00016438,2]
[323783281,1714290645887,-849.29,0.00016438,2]
[323783282,1714290645901,-500.0,0.00016438,2]
[323783283,1714290645915,-500.0,0.00016438,2]
[323783284,1714290645933,-663.76,0.00016438,2]
[323783285,1714290645947,-500.0,0.00016438,2]
[323783286,1714290645962,-500.0,0.00016438,2]
[323783287,1714290645977,-1449.68,0.00016438,2]
[323783288,1714290645992,-500.0,0.00016438,2]
[323783289,1714290646008,-500.0,0.00016438,2]
[323783290,1714290646024,-1656.72,0.00016438,2]
[323783291,1714290646039,-500.0,0.00016438,2]
[323783292,1714290646055,-916.6,0.00016438,2]
[323783293,1714290646071,-500.0,0.00016438,2]
[323783294,1714290646086,-500.0,0.00016438,2]
[323783295,1714290646101,-546.79,0.00016438,2]
[323783296,1714290646117,-500.0,0.00016438,2]
[323783297,1714290646132,-500.0,0.00016438,2]
[323783298,1714290646148,-1759.64,0.00016438,2]
[323783299,1714290646164,-321.76219254,0.00016438,2]
[323783300,1714290646180,-500.0,0.00016438,2]
[323783301,1714290646195,-1699.16,0.00016438,2]
[323783302,1714290646211,-500.0,0.00016438,2]
[323783304,1714290646226,-500.0,0.00016438,2]
[323783305,1714290646240,-1449.85,0.00016438,2]
[323783306,1714290646254,-500.0,0.00016438,2]
[323783307,1714290646270,-500.0,0.00016438,2]
[323783309,1714290646284,-618.31,0.00016438,2]
[323783312,1714290646299,-591.45,0.00016438,2]
[323783313,1714290646314,-500.02986009,0.00016438,2]
[323783314,1714290646328,-500.0,0.00016438,2]
[323783315,1714290646344,-500.0,0.00016438,2]
[323783316,1714290646358,-511.87,0.00016438,2]
[323783317,1714290646372,-500.0,0.00016438,2]
[323783318,1714290646387,-1787.23,0.00016438,2]
[323783319,1714290646401,-2133.15,0.00016438,2]
[323783320,1714290646416,-500.0,0.00016438,2]
[323783321,1714290646431,-500.0,0.00016438,2]
[323783322,1714290646445,-500.0,0.00016438,2]
[323783323,1714290646459,-513.08,0.00016438,2]
[323783324,1714290646474,-500.0,0.00016438,2]
[323783325,1714290646488,-519.88074694,0.00016438,2]
[323783326,1714290646503,-566.55738,0.00016438,2]
[323783327,1714290646523,-500.0,0.00016438,2]
[323783328,1714290646543,-500.0,0.00016438,2]
[323783329,1714290646561,-500.0,0.00016438,2]
[323783330,1714290646579,-609.27,0.00016438,2]
[323783331,1714290646597,-762.46,0.00016438,2]
[323783332,1714290646612,-1587.53,0.00016438,2]
[323783333,1714290646630,-1218.86,0.00016438,2]
[323783334,1714290646647,-1004.61,0.00016438,2]
[323783335,1714290646664,-500.0,0.00016438,2]
[323783336,1714290646679,-1614.92,0.00016438,2]
[323783337,1714290646696,-500.0,0.00016438,2]
[323783338,1714290646712,-500.0,0.00016438,2]
[323783339,1714290646728,-608.25,0.00016438,2]
[323783340,1714290646745,-500.0,0.00016438,2]
[323783341,1714290646761,-500.0,0.00016438,2]
[323783342,1714290646778,-500.0,0.00016438,2]
[323783343,1714290646795,-500.0,0.00016438,2]
[323783344,1714290646810,-861.31,0.00016438,2]
[323783345,1714290646826,-615.12,0.00016438,2]
[323783346,1714290646840,-730.1,0.00016438,2]
[323783347,1714290646855,-500.0,0.00016438,2]
[323783348,1714290646871,-1214.22,0.00016438,2]
[323783349,1714290646886,-860.11,0.00016438,2]
[323783350,1714290646902,-1077.49,0.00016438,2]
[323783351,1714290646917,-500.0,0.00016438,2]
[323783352,1714290646933,-500.0,0.00016438,2]
[323783353,1714290646948,-500.0,0.00016438,2]
[323783354,1714290646964,-1054.89,0.00016438,2]
[323783355,1714290646981,-505.74229034,0.00016438,2]
[323783356,1714290646996,-532.06,0.00016438,2]
[323783357,1714290647012,-500.0,0.00016438,2]
[323783358,1714290647028,-3000.0,0.00016438,2]
[323783359,1714290647043,-500.0,0.00016438,2]
[323783360,1714290647058,-500.0,0.00016438,2]
[323783361,1714290647073,-846.52,0.00016438,2]
[323783362,1714290647090,-944.47,0.00016438,2]
[323783363,1714290647107,-982.42,0.00016438,2]
[323783364,1714290647117,-521.39,0.00016438,2]
[323783365,1714290647127,-532.91,0.00016438,2]
[323783366,1714290647137,-500.0,0.00016438,2]
[323783367,1714290647147,-500.0,0.00016438,2]
[323783368,1714290647157,-533.92,0.00016438,2]
[323783369,1714290647167,-500.0,0.00016438,2]
[323783370,1714290647178,-3358.54,0.00016438,2]
[323783371,1714290647189,-311.59501311,0.00016438,2]
[323783372,1714290647199,-736.07,0.00016438,2]
[323783373,1714290647210,-500.0,0.00016438,2]
[323783374,1714290647222,-708.83,0.00016438,2]
[323783375,1714290647234,-579.5362795,0.00016438,2]
[323783376,1714290647246,-672.12,0.00016438,2]
[323783377,1714290647602,-665.92,0.00016438,2]
[323783378,1714290647638,-659.85,0.00016438,2]
[323783379,1714290647657,-155.23109557,0.00016438,2]
[323783380,1714290647678,-500.0,0.00016438,2]
[323783381,1714290647689,-1823.81,0.00016438,2]
[323783382,1714290647699,-529.74,0.00016438,2]
[323783383,1714290647709,-500.0,0.00016438,2]
[323783384,1714290647720,-500.48181571,0.00016438,2]
[323783385,1714290647729,-500.0,0.00016438,2]
[323783386,1714290647742,-500.0,0.00016438,2]
[323783387,1714290647753,-500.0,0.00016438,2]
[323783388,1714290647763,-505.19,0.00016438,2]
[323783389,1714290647774,-731.66,0.00016438,2]
[323783390,1714290647785,-500.0,0.00016438,2]
[323783391,1714290647796,-1602.69,0.00016438,2]
[323783392,1714290647806,-500.0,0.00016438,2]
[323783393,1714290647816,-500.0,0.00016438,2]
[323783394,1714290647826,-1422.89,0.00016438,2]
[323783395,1714290647836,-500.0,0.00016438,2]
[323783396,1714290647847,-1352.23,0.00016438,2]
[323783397,1714290647856,-553.24,0.00016438,2]
[323783398,1714290647865,-2507.28,0.00016438,2]
[323783399,1714290647874,-508.38,0.00016438,2]
[323783400,1714290647884,-500.0,0.00016438,2]
[323783401,1714290647893,-500.0,0.00016438,2]
[323783402,1714290647904,-500.0,0.00016438,2]
[323783403,1714290647914,-4736.65,0.00016438,2]
[323783404,1714290647923,-635.53,0.00016438,2]
[323783405,1714290647933,-774.37,0.00016438,2]
[323783406,1714290647943,-595.38062294,0.00016438,2]
[323783407,1714290647953,-500.0,0.00016438,2]
[323783408,1714290647963,-500.0,0.00016438,2]
[323783409,1714290647973,-500.0,0.00016438,2]
[323783410,1714290647983,-500.0,0.00016438,2]
[323783411,1714290647994,-500.0,0.00016438,2]
[323783412,1714290648004,-657.69,0.00016438,2]
[323783413,1714290648014,-500.0,0.00016438,2]
[323783414,1714290648024,-500.0,0.00016438,2]
[323783415,1714290648033,-2640.98,0.00016438,2]
[323783416,1714290648043,-500.0,0.00016438,2]
[323783417,1714290648053,-138.27841954,0.00016438,2]
[323783418,1714290648720,-361.72158046,0.00016438,2]
[323783419,1714290648731,-1016.86,0.00016438,2]
[323783420,1714290648745,-500.0,0.00016438,2]
[323783421,1714290648755,-256.34401348,0.00016438,2]
[323783422,1714290648765,-500.0,0.00016438,2]
[323783423,1714290648775,-500.0,0.00016438,2]
[323783424,1714290648786,-500.0,0.00016438,2]
[323783425,1714290648796,-500.0,0.00016438,2]
[323783426,1714290648806,-1034.49,0.00016438,2]
[323783427,1714290648817,-500.0,0.00016438,2]
[323783428,1714290648827,-984.49,0.00016438,2]
[323783429,1714290648838,-500.0,0.00016438,2]
[323783430,1714290648848,-506.83656751,0.00016438,2]
[323783431,1714290648858,-16099.81,0.00016438,2]
[323783432,1714290648868,-500.0,0.00016438,2]
[323783433,1714290648878,-2756.7,0.00016438,2]
[323783434,1714290648889,-539.39,0.00016438,2]
[323783435,1714290648899,-765.66,0.00016438,2]
[323783436,1714290648909,-500.0,0.00016438,2]
[323783437,1714290648920,-500.0,0.00016438,2]
[323783438,1714290648931,-500.0,0.00016438,2]
[323783439,1714290648942,-1294.02,0.00016438,2]
[323783440,1714290648953,-500.0,0.00016438,2]
[323783441,1714290648963,-500.0,0.00016438,2]
[323783442,1714290648973,-501.32527678,0.00016438,2]
[323783443,1714290648983,-1802.17,0.00016438,2]
[323783444,1714290648992,-500.0,0.00016438,2]
[323783445,1714290649003,-4184.9,0.00016438,2]
[323783446,1714290649013,-500.0,0.00016438,2]
[323783447,1714290649022,-4361.5,0.00016438,2]
[323783448,1714290649033,-500.0,0.00016438,2]
[323783449,1714290649042,-500.0,0.00016438,2]
[323783450,1714290649053,-2513.18205838,0.00016438,2]
[323783451,1714290649067,-567.38794162,0.00016438,2]
[323783452,1714290649077,-708.13,0.00016438,2]
[323783453,1714290649087,-500.0,0.00016438,2]
[323783454,1714290649097,-10371.48,0.00016438,2]
[323783455,1714290649107,-90.09518459,0.00016438,2]
[323783456,1714290649119,-409.90481541,0.00016438,2]
[323783457,1714290649130,-500.0,0.00016438,2]
[323783458,1714290649140,-500.0,0.00016438,2]
[323783459,1714290649150,-506.89538761,0.00016438,2]
[323783460,1714290649161,-500.0,0.00016438,2]
[323783461,1714290649170,-500.0,0.00016438,2]
[323783462,1714290649181,-1332.16,0.00016438,2]
[323783463,1714290649193,-505.29634276,0.00016438,2]
[323783464,1714290649203,-557.33,0.00016438,2]
[323783465,1714290649213,-500.0,0.00016438,2]
[323783466,1714290649223,-138.55378043,0.00016438,2]
[323783467,1714290649235,-353.50613739,0.00016438,2]
[323783468,1714290649247,-33.32008218,0.00016438,2]
[323783469,1714290649258,-242.35991782,0.00016438,2]
[323783470,1714290652107,-157.30304109,0.00016335,2]
[323783471,1714290652116,-343.45911395,0.00016335,2]
[323783472,1714290652126,-257.64008218,0.00016438,2]
[323783473,1714290652136,-601.18,0.00016438,2]
[323783474,1714290652146,-500.0,0.00016438,2]
[323783475,1714290652156,-500.0,0.00016438,2]
[323783476,1714290652166,-500.0,0.00016438,2]
[323783477,1714290652176,-1590.96,0.00016438,2]
[323783478,1714290652187,-2152.17,0.00016438,2]
[323783479,1714290652198,-4309.57,0.00016438,2]
[323783480,1714290652207,-500.0,0.00016438,2]
[323783481,1714290652217,-500.0,0.00016438,2]
[323783482,1714290652227,-934.12,0.00016438,2]
[323783483,1714290652238,-1897.83,0.00016438,2]
[323783484,1714290652249,-2356.32,0.00016438,2]
[323783485,1714290652259,-500.0,0.00016438,2]
[323783486,1714290652270,-3413.38,0.00016438,2]
[323783487,1714290652280,-500.0,0.00016438,2]
[323783488,1714290652290,-500.0,0.00016438,2]
[323783489,1714290652300,-500.0,0.00016438,2]
[323783490,1714290652310,-500.0,0.00016438,2]
[323783491,1714290652320,-636.66,0.00016438,2]
[323783492,1714290652331,-1478.15,0.00016438,2]
[323783493,1714290652342,-500.0,0.00016438,2]
[323783494,1714290652352,-500.0,0.00016438,2]
[323783495,1714290652363,-964.54,0.00016438,2]
[323783496,1714290652373,-500.0,0.00016438,2]
[323783497,1714290652383,-2154.49,0.00016438,2]
[323783498,1714290652395,-1194.21,0.00016438,2]
[323783499,1714290652406,-2561.03,0.00016438,2]
[323783500,1714290652417,-9524.29,0.00016438,2]
[323783501,1714290652428,-500.0,0.00016438,2]
[323783502,1714290652440,-500.0,0.00016438,2]
[323783503,1714290652450,-500.0,0.00016438,2]
[323783504,1714290652462,-500.0,0.00016438,2]
[323783505,1714290652472,-501.49320003,0.00016438,2]
[323783506,1714290652483,-499.72326719,0.00016438,2]
[323783507,1714290652494,-500.0,0.00016438,2]
[323783508,1714290652504,-1572.3,0.00016438,2]
[323783509,1714290652514,-500.0,0.00016438,2]
[323783510,1714290652524,-983.56,0.00016438,2]
[323783511,1714290652536,-5794.78,0.00016438,2]
[323783512,1714290652546,-1079.83,0.00016438,2]
[323783513,1714290652556,-510.92100713,0.00016438,2]
[323783514,1714290652566,-500.0,0.00016438,2]
[323783515,1714290652576,-581.16,0.00016438,2]
[323783516,1714290652588,-586.74,0.00016438,2]
[323783517,1714290652598,-1442.06,0.00016438,2]
[323783518,1714290652609,-500.0,0.00016438,2]
[323783519,1714290652619,-47039.1,0.00016438,2]
[323783520,1714290652630,-602.17,0.00016438,2]
[323783521,1714290652641,-651.23,0.00016438,2]
[323783522,1714290652651,-2564.51,0.00016438,2]
[323783523,1714290652661,-509.26636408,0.00016438,2]
[323783524,1714290652672,-500.0,0.00016438,2]
[323783525,1714290652684,-715.02,0.00016438,2]
[323783526,1714290652696,-1209.01,0.00016438,2]
[323783527,1714290652705,-500.0,0.00016438,2]
[323783528,1714290652715,-500.0,0.00016438,2]
[323783529,1714290652726,-500.0,0.00016438,2]
[323783530,1714290652737,-27222.33401898,0.00016438,2]
[323783531,1714290652753,-4054.38111993,0.00016438,2]
[323783532,1714290652766,-34013.00486109,0.00016438,2]
[323783533,1714290652777,-1803.04,0.00016438,2]
[323783534,1714290652787,-975.04,0.00016438,2]
[323783535,1714290652798,-4259.19,0.00016438,2]
[323783536,1714290652810,-500.0,0.00016438,2]
[323783537,1714290652821,-1165.47,0.00016438,2]
[323783538,1714290652832,-500.0,0.00016438,2]
[323783539,1714290652842,-500.0,0.00016438,2]
[323783540,1714290652853,-500.0,0.00016438,2]